Workbook

Sheet Introduction and guidance
C10: Broiler excreta mass balance model
C15: Nutritional Management Best Available Techniques for Poultry (click here to see regulations)
C17: Best Available Techniques (BAT) Reference Document for the Intensive Rearing of Poultry or Pigs (click here to see reference document)
C19: Introduction: Farms with more than 40,000 rearing places for poultry fall in scope of regulations requiring the adoption of Best Available Techniques (BAT) to reduce environmental emissions. BAT for pig and poultry farms is outlined in a published BAT Conclusions (BATC) document (see link above). BAT 3 requires farms to reduce total nitrogen excreted whilst BAT 4 requires the reduction of total phosphorus excreted. The BATC include levels for total nitrogen and total phosphorus excreted, measured per animal place. All permitted farms must meet these levels. BAT 24 requires the monitoring of total nitrogen and total phosphorus excreted with two recognised methods: Calculation by using a mass balance or estimation using manure analysis results. Issued permits contain conditions requiring submission of the derived data on an annual basis. This simple spreadsheet tool has been designed to assist farms in assessing compliance with the new BAT for poultry and follows a mass balance calculation approach. The tool is recognised by the Environment Agency, Natural Resources Wales, Northern Ireland Environment Agency and Scottish Environment Protection Agency. Instructions: To calculate the BAT Emission levels please follow the instructions embedded within each worksheet. Details of the Flock and Diets need entering in the ‘Flock Input Details’ and ‘Diet Input Details’ worksheets, the emission values and feed intake data will then be calculated in the ‘Results’ worksheet. Only when all values are completed within the input forms will the BAT values be calculated. Inputs need to accurately reflect your system usage across the year. You should save a copy of your completed calculator tool in case it is requested as part of future permit compliance checks. You will need to read the terms of use below and tick the agree box before you can use the tool.
C33: BAT Total Nitrogen and Phosphorus Excreted Levels
C34: Parameter | F34: Category | H34: BAT-associated total nitrogen excreted ⁽¹⁾⁽²⁾ (kg N excreted/animal place/year) | L34: BAT-associated total phosphorus excreted ⁽¹⁾⁽²⁾ (kg P₂O₅ excreted/animal place/year)
C35: Total nutrient excreted | F35: Broilers | H35: 0.2 - 0.6 | L35: 0.05 - 0.25
C36: (1) The lower end of the range can be achieved by using a combination of techniques. (2) The BAT-associated total nitrogen/phosphorus excreted is not applicable to pullets or breeders, for all poultry species. The associated monitoring is in BAT 24. The BAT-associated total phosphorus or nitrogen excreted levels may not be applicable to organic livestock production nor to the rearing of poultry species not indicated above.
C37: Acknowledgements: This simple spreadsheet tool has been designed, based on an update of the previous model (created by AIC), by Ricardo. This work model has been developed on behalf of the Environment Agency alongside a partnership of industry bodies (BPC, BEIC) to assist farms in assessing compliance with the new BAT for poultry. The tool has been peer reviewed by experts in feed nutrition and is recognised by the Environment Agency, Natural Resources Wales, Northern Ireland Environment Agency and Scottish Environment Protection Agency.
C39: Terms of use
C40: Enter your installation name and permit reference number in the white boxes below:
C41: Installation Name: | H41: Permit Number:
C42: To use the calculator, first read the terms of use below and tick the box to confirm your acceptance (the calculator will not work if this box is not ticked) | N42: Tick to confirm acceptance
AG43: FALSE
C44: Terms of use In making use of the BAT Emission Calculator (“the Calculator”), I agree to and accept the following: 1. I understand that the Calculator has been made available to me by the PARTNERS (Environment Agency, BPC, BEIC) (“the Partners”), and that whilst the Partners have used their best endeavours to ensure the accuracy of the Calculator, the Partners accept no liability or responsibility whatsoever for any errors or omissions in the Calculator. 2. I understand that, so far as is permitted in law, the Partners accept no liability or responsibility whatsoever for any losses, financial penalties or other consequential losses howsoever arising from my use of the Calculator. 3. It is my responsibility to ensure that the data that I input into the Calculator is accurate and correct. 4. I accept that the Partners and their employees and agents do not have sufficient knowledge of my individual farm or business to provide advice as to my individual requirements. 5. I understand that the Calculator is no substitute for professional advice and that I should seek professional advice as to my compliance requirements under any relevant legislation. 6. I agree that it is my responsibility to ensure that I comply with the relevant compliance requirements under any relevant legislation. 7. I agree that English law applies to my use of the Calculator, and the Courts of England and Wales have jurisdiction to hear any disputes arising from my use of the Calculator. 8. I agree that if I am using the Calculator in a professional capacity for the benefit of a client, it is my responsibility as my client’s professional adviser to advise my client on his / her compliance with the relevant requirements under any relevant legislation.
C65: Please note: If further details on the data inputs and calculations are required, calculation sheets can be unlocked within the model by right clicking the 'Introduction and guidance' tab, clicking 'Unhide...' highlighting each sheet and clicking 'OK'.
Q79: TRUE

Sheet Flock input details
E1: Input data - flock details
B3: Flock input table 1: | G3: Flock details input instructions Please note: One complete workbook needs to be filled out per management system on your farm. Flock input table 1: Enter number of birds per cycle and number of days between the final clearance and the next cycle in the two white boxes. Note this should reflect the number of birds per cycle not the total annual number of birds. The number of birds per cycle entry cell will go red if the value entered is below 40,000 rearing places, the BAT regulation limit. If you have under 40,000 birds you can still use this tool as normal. Note: Number of cycles will not calculate correctly until Flock input table 2 is completed. Flock input table 2: Enter the age of thin(s) to the flock in days and the percentage of birds taken each time in the white boxes. Note, the percentage of thins and clear should total 100%. Flock input table 3: Enter a FCR value. The target value is the average from the performance data. The difference between these will be calculated and used to update the performance data. If the FCR value is not known, this can be left blank and the target value will be used. Enter a value for the bodyweight at clear. The target value is from the performance data. The difference between these will be calculated and used to adjust the performance data. Flock input table 4: Enter a percentage value for 7 day mortality in the white box.
B4: Per Shed/Farm
B5: Number of birds per cycle
B6: Days empty between cycles
B7: Number of cycles per year | C7: =IF(C6="","",(365/(C13+C6))) -> 
B9: Flock input table 2:
B10: Flock Program Summary | C10: Days | D10: Thinning percentage
B11: Age of 1st thin | D11: % 1st thin
B12: Age of 2nd thin | D12: % 2nd thin
B13: Age of clear | D13: % clear
E14: =SUM(E11:E13) -> 0
B16: Flock input table 3:
B17: Modelling Factors | C17: Your Values | D17: Target Values
B18: FCR | D18: =AVERAGE(Table2[FCR]) -> 1.240267857
B19: Bodyweight (g) | D19: =VLOOKUP(C13,Perf_Data,2) -> 0
B21: Flock input table 4:
B22: Other Factors
B23: 7 day mortality (% of flock) | G23: Performance data available, click here.

Sheet Diet input details
E1: Input data - diet details
B3: Diet input table 1:
B4: Diet Details | H4: Flock details input instructions Diet input table 1: Please input protein and phosphorus levels (values can be found on all feed declaration tickets) for the appropriate diets in the white boxes in the "Diet Details" table. If the diets are the same (e.g. Grower 1 and 2), then please put the same protein and phosphorus values in both respective sets of boxes. If feed diet groups are not used then leave the cells blank and move on to the next used group. Editable entry cells can be used to add a description/name to the feed rations you use. There is a separate row for composition of Whole Wheat. If Whole Wheat is not fed these cells can be left blank. Diet input table 2: Enter the start and end days within the production cycle for each diet including the proportion (percentage of total ration fed) of the diet that is made up using Whole Wheat in the final column. Please note the Feed Start Day should be one higher than the previous ration Feed End Day. The final Feed End Day should be less than or equal to the day of clear, found on Flock Input Details page. Diet input table 3: State the level of phytase used within the diet. This is a drop down box with predefined additive values, please select the value closest to your phytase addition to feed.
B5: Diet | D5: Crude Protein (%) | E5: Total Nitrogen (%) | F5: Total Phosphorus (%)
B6: Ration 1 | C6: Editable entry cell | E6: =D6/6.25 -> 0
B7: Ration 2 | C7: Editable entry cell | E7: =D7/6.25 -> 0
B8: Ration 3 | C8: Editable entry cell | E8: 0
B9: Ration 4 | C9: Editable entry cell | E9: 0
B10: Ration 5 | C10: Editable entry cell | E10: 0
B11: Ration 6 | C11: Editable entry cell | E11: 0
B12: Ration 7 | C12: Editable entry cell | E12: 0
B13: Ration 8 | C13: Editable entry cell | E13: 0
B14: Ration 9 | C14: Editable entry cell | E14: =D14/6.25 -> 0
B15: Whole Wheat | E15: =D15/6.25 -> 0
B17: Diet input table 2:
B18: Feed Plan Details
B19: Diet | D19: Feed Start (Day) | E19: Feed End (Day) | F19: Whole Wheat (% of ration)
B20: =B6 -> Ration 1 | C20: =IF(C6="Editable entry cell","",IF(C6="","",C6)) -> 
B21: =B7 -> Ration 2 | C21: =IF(C7="Editable entry cell","",IF(C7="","",C7)) -> 
B22: Ration 3 | C22: =IF(C8="Editable entry cell","",IF(C8="","",C8)) -> 
B23: Ration 4
B24: Ration 5
B25: Ration 6
B26: Ration 7
B27: Ration 8
B28: Ration 9
B30: Diet input table 3:
B31: Nutrient Retention
B32: Phytase feed additive value | E32: None

Sheet Results
G1: Export data - emission levels
B4: Installation name: | D4: ='Introduction and guidance'!E41 -> 0 | H4: Permit Number: | J4: ='Introduction and guidance'!K41 -> 0
B7: BAT Emission Level | M7: Results sheet instructions Use the data given in this box to demonstrate compliance with the nitrogen and phosphorus excretion levels. Based on the data entered within the diet and flock details input the emission levels are calculated within the BAT Emission level box, and colour coded green to show compliance with the upper limits of the BAT standards. If the cells turn red then the emission levels are not compliant. - Nitrogen upper limit = 0.6kg N/animal/place/year - Phosphorus upper limit = 0.25kg P/animal place/year
B8: Nitrogen excreted Per animal place (kg N/ Year) | E8: Phosphorus excreted Per animal place (kg P/ Year)
B9: =H20 ->  | E9: =I20 -> 
B11: Percentage of BAT upper Limit
B12: =B9/0.6 ->  | E12: =E9/0.25 -> 
C15: Intake Data | H15: Emission Data
C16: Cumulative feed intake (t) | D16: Nitrogen intake (t) | E16: Phosphorus intake (t) | H16: Nitrogen excreted (t) | I16: Phosphorus excreted (t)
B17: Per cycle | C17: ='Calculations - Dataset'!B130 -> 0 | D17: ='Calculations - Dataset'!C130 -> 0 | E17: ='Calculations - Dataset'!D130 -> 0 | G17: Per cycle | H17: ='Calculations - Dataset'!E130 -> 0 | I17: ='Calculations - Dataset'!F130 -> 0
B18: Per year | C18: ='Calculations - Dataset'!B131 ->  | D18: ='Calculations - Dataset'!C131 ->  | E18: ='Calculations - Dataset'!D131 ->  | G18: Per year | H18: ='Calculations - Dataset'!E131 ->  | I18: ='Calculations - Dataset'!F131 -> 
C19: Cumulative feed intake (kg) | D19: Nitrogen intake (kg) | E19: Phosphorus intake (kg) | H19: Nitrogen excreted (kg) | I19: Phosphorus excreted (kg)
B20: Per animal place/year | C20: ='Calculations - Dataset'!B136 ->  | D20: ='Calculations - Dataset'!C136 ->  | E20: ='Calculations - Dataset'!D136 ->  | G20: Per animal place/year | H20: ='Calculations - Dataset'!A122 ->  | I20: ='Calculations - Dataset'!B122 -> 
C23: Emission Levels
C24: Per cycle (t) | E24: Per year (t) | F24: kg per tonne liveweight
B25: Nitrogen | C25: =H17 -> 0 | E25: =H18 ->  | F25: =((C25*1000)/('Calculations - Dataset'!$B$155/1000)) -> 
B26: Phosphorus | C26: =I17 -> 0 | E26: =I18 ->  | F26: =((C26*1000)/('Calculations - Dataset'!$B$155/1000)) -> 

Sheet References and assumptions log (hidden)
A1: References and assumptions log
A3: Unique ID | B3: Description with key details | C3: Location in workbook | D3: Link to evidence | E3: Date of last update | F3: Initials | G3: Methodology behind assumption | H3: Assumptions | I3: Any other comments | J3: Reference or assumption
A4: Poultry 01 | B4: This table presents performance data on broilers form ROSS308 produced by Aviagen | C4: =CELL("address",'Calculations - Data tables'!B4) -> '[Broiler_Model draft_V3_Password protected.xlsm]Calculations - Data tables'!$B$4 | D4: RossxRoss308-BroilerPerformanceObjectives2022-EN.pdf (aviagen.com) | E4: 44977 | F4: LR | G4: This data has been used to pull out body weight and cumulative intake values for poultry. | H4: The data is presented in grams per day. | I4: Updated data tables from those previously used in the AIC models. | J4: Reference
A5: Poultry 02 | B5: Nitrogen Conversion Factor | C5: =CELL("address",'Calculations - Data tables'!B68) -> '[Broiler_Model draft_V3_Password protected.xlsm]Calculations - Data tables'!$B$68 | D5: FAO (N.D>) https://www.fao.org/3/y5022e/y5022e03.htm#:~:text=On%20the%20basis%20of%20early,nitrogen%20content%20into%20protein%20content. | E5: 44977 | F5: LR | G5: This factor is used to convert crude protein content of feed to nitrogen. | H5: Does not consider specifics of individual feeds but is a standardised factor used within the industry. | I5: None. | J5: Reference
A6: Poultry 03 | B6: Effect of Phytase on intake and excretion of dry matter, phosphorus, and nitrogen | C6: =CELL("address",'Calculations - Data tables'!B76) -> '[Broiler_Model draft_V3_Password protected.xlsm]Calculations - Data tables'!$B$76 | D6: Assuena V. et al., (2009), Effect of Dietary Phytase Supplementation on the Performance, Bone Densitometry, and Phosphorus and Nitrogen Excretion of Broilers. | E6: 44978 | F6: LR | G6: This data has been used to calculate the impact of including phytase in the diet on the excretion of phosphorus. | H6: Previously referenced in the AIC Broiler model. | I6: Data limitation - This data is taken from a South American paper, and the diet is based on corn and soybean, on only 38-42d old broilers in a full metabolism trial. | J6: Reference
A7: Poultry 04 | B7: Phytase feed additives effect on nitrogen | C7: None | D7: None | E7: 44978 | F7: LR | G7: None | H7: Within the model calculations nitrogen is not impacted by phytase, this is an assumption based on current literature. | I7: This can be updated in the model a link is found. | J7: Assumption
A8: Poultry 05 | B8: N and P retention factors from a study on phytase feed addition | C8: None | D8: Assuena V. et al., (2009), Effect of Dietary Phytase Supplementation on the Performance, Bone Densitometry, and Phosphorus and Nitrogen Excretion of Broilers. | E8: 44978 | F8: LR | G8: This data has been used to calculate the impact of including phytase in the diet on the excretion of phosphorus. | H8: The N and P retention factors do not require editing by user - the factors used in this model are from Assuena et al. (2009). Control N and P retention values used within this model are also from this study. | I8: This can be updated in the model a link is found. | J8: Assumption
A9: Poultry 06 | B9: Liveweight data | C9: None | D9: None | E9: 44978 | F9: LR | G9: None | H9: We have included weighted average and liveweight to the dataset page as these are not required to be updated by the input user. | I9: None | J9: Assumption
A10: Poultry 07 | B10: Broiler performance data | C10: None | D10: None | E10: 44978 | F10: LR | G10: None | H10: Currently the broiler performance data is based on "As Hatched" data which means it is a combination of both sexes. | I10: None | J10: Assumption

Sheet Calculations - Data tables (hidden)
A1: Data tables holding background data
A3: Table 1. Poultry cumulative feed intake
A4: Source: | B4: Poultry 01 | C4: ROSS 308
A5: This table presents performance data on broilers form ROSS308 produced by Aviagen
A7: Day | B7: Weight (g) | C7: Target adjusted weight (g) | D7: Daily Gain (g) | E7: Average Daily Gain (g) | F7: Daily Intake (g) | G7: Cumulative Intake (g) | H7: FCR | I7: Target adjusted FCR | J7: FCR/7 Day Mort Adjusted Cum Feed
A8: 0 | B8: 0 | C8: =Table2[[#This Row],[Weight (g)]]*Table18[% of Target bodyweight] -> 0 | I8: =Table2[[#This Row],[FCR]]*Table1820[% of Target bodyweight] -> 0 | J8: =IF('Flock input details'!$C$18>0,(Table2[[#This Row],[Target adjusted weight (g)]]*Table2[[#This Row],[Target adjusted FCR]]),(Table2[[#This Row],[Target adjusted weight (g)]]*Table2[[#This Row],[FCR]])) -> 0
A9: 1 | B9: 62 | C9: =Table2[[#This Row],[Weight (g)]]*Table18[% of Target bodyweight] -> 62 | D9: 18 | G9: 12 | H9: 0.196 | I9: =Table2[[#This Row],[FCR]]*Table1820[% of Target bodyweight] -> 0.196 | J9: =IF('Flock input details'!$C$18>0,(Table2[[#This Row],[Target adjusted weight (g)]]*Table2[[#This Row],[Target adjusted FCR]]),(Table2[[#This Row],[Target adjusted weight (g)]]*Table2[[#This Row],[FCR]])) -> 12.152
A10: 2 | B10: 81 | C10: =Table2[[#This Row],[Weight (g)]]*Table18[% of Target bodyweight] -> 81 | D10: 19 | F10: 16 | G10: 28 | H10: 0.352 | I10: =Table2[[#This Row],[FCR]]*Table1820[% of Target bodyweight] -> 0.352 | J10: =IF('Flock input details'!$C$18>0,(Table2[[#This Row],[Target adjusted weight (g)]]*Table2[[#This Row],[Target adjusted FCR]]),(Table2[[#This Row],[Target adjusted weight (g)]]*Table2[[#This Row],[FCR]])) -> 28.512
A11: 3 | B11: 102 | C11: =Table2[[#This Row],[Weight (g)]]*Table18[% of Target bodyweight] -> 102 | D11: 21 | F11: 20 | G11: 48 | H11: 0.476 | I11: =Table2[[#This Row],[FCR]]*Table1820[% of Target bodyweight] -> 0.476 | J11: =IF('Flock input details'!$C$18>0,(Table2[[#This Row],[Target adjusted weight (g)]]*Table2[[#This Row],[Target adjusted FCR]]),(Table2[[#This Row],[Target adjusted weight (g)]]*Table2[[#This Row],[FCR]])) -> 48.552
A12: 4 | B12: 125 | C12: =Table2[[#This Row],[Weight (g)]]*Table18[% of Target bodyweight] -> 125 | D12: 23 | F12: 24 | G12: 72 | H12: 0.577 | I12: =Table2[[#This Row],[FCR]]*Table1820[% of Target bodyweight] -> 0.577 | J12: =IF('Flock input details'!$C$18>0,(Table2[[#This Row],[Target adjusted weight (g)]]*Table2[[#This Row],[Target adjusted FCR]]),(Table2[[#This Row],[Target adjusted weight (g)]]*Table2[[#This Row],[FCR]])) -> 72.125
A13: 5 | B13: 151 | C13: =Table2[[#This Row],[Weight (g)]]*Table18[% of Target bodyweight] -> 151 | D13: 26 | F13: 27 | G13: 100 | H13: 0.658 | I13: =Table2[[#This Row],[FCR]]*Table1820[% of Target bodyweight] -> 0.658 | J13: =IF('Flock input details'!$C$18>0,(Table2[[#This Row],[Target adjusted weight (g)]]*Table2[[#This Row],[Target adjusted FCR]]),(Table2[[#This Row],[Target adjusted weight (g)]]*Table2[[#This Row],[FCR]])) -> 99.358
A14: 6 | B14: 181 | C14: =Table2[[#This Row],[Weight (g)]]*Table18[% of Target bodyweight] -> 181 | D14: 29 | F14: 31 | G14: 131 | H14: 0.724 | I14: =Table2[[#This Row],[FCR]]*Table1820[% of Target bodyweight] -> 0.724 | J14: =IF('Flock input details'!$C$18>0,(Table2[[#This Row],[Target adjusted weight (g)]]*Table2[[#This Row],[Target adjusted FCR]]),(Table2[[#This Row],[Target adjusted weight (g)]]*Table2[[#This Row],[FCR]])) -> 131.044
A15: 7 | B15: 213 | C15: =Table2[[#This Row],[Weight (g)]]*Table18[% of Target bodyweight] -> 213 | D15: 32 | E15: 24 | F15: 35 | G15: 166 | H15: 0.78 | I15: =Table2[[#This Row],[FCR]]*Table1820[% of Target bodyweight] -> 0.78 | J15: =IF('Flock input details'!$C$18>0,(Table2[[#This Row],[Target adjusted weight (g)]]*Table2[[#This Row],[Target adjusted FCR]]),(Table2[[#This Row],[Target adjusted weight (g)]]*Table2[[#This Row],[FCR]])) -> 166.14
A16: 8 | B16: 249 | C16: =Table2[[#This Row],[Weight (g)]]*Table18[% of Target bodyweight] -> 249 | D16: 36 | E16: 26 | F16: 39 | G16: 206 | H16: 0.826 | I16: =Table2[[#This Row],[FCR]]*Table1820[% of Target bodyweight] -> 0.826 | J16: =IF('Flock input details'!$C$18>0,(Table2[[#This Row],[Target adjusted weight (g)]]*Table2[[#This Row],[Target adjusted FCR]]),(Table2[[#This Row],[Target adjusted weight (g)]]*Table2[[#This Row],[FCR]])) -> 205.674
A17: 9 | B17: 288 | C17: =Table2[[#This Row],[Weight (g)]]*Table18[% of Target bodyweight] -> 288 | D17: 39 | E17: 27 | F17: 44 | G17: 249 | H17: 0.865 | I17: =Table2[[#This Row],[FCR]]*Table1820[% of Target bodyweight] -> 0.865 | J17: =IF('Flock input details'!$C$18>0,(Table2[[#This Row],[Target adjusted weight (g)]]*Table2[[#This Row],[Target adjusted FCR]]),(Table2[[#This Row],[Target adjusted weight (g)]]*Table2[[#This Row],[FCR]])) -> 249.12
A18: 10 | B18: 330 | C18: =Table2[[#This Row],[Weight (g)]]*Table18[% of Target bodyweight] -> 330 | D18: 42 | E18: 29 | F18: 48 | G18: 297 | H18: 0.9 | I18: =Table2[[#This Row],[FCR]]*Table1820[% of Target bodyweight] -> 0.9 | J18: =IF('Flock input details'!$C$18>0,(Table2[[#This Row],[Target adjusted weight (g)]]*Table2[[#This Row],[Target adjusted FCR]]),(Table2[[#This Row],[Target adjusted weight (g)]]*Table2[[#This Row],[FCR]])) -> 297
A19: 11 | B19: 376 | C19: =Table2[[#This Row],[Weight (g)]]*Table18[% of Target bodyweight] -> 376 | D19: 46 | E19: 30 | F19: 52 | G19: 349 | H19: 0.93 | I19: =Table2[[#This Row],[FCR]]*Table1820[% of Target bodyweight] -> 0.93 | J19: =IF('Flock input details'!$C$18>0,(Table2[[#This Row],[Target adjusted weight (g)]]*Table2[[#This Row],[Target adjusted FCR]]),(Table2[[#This Row],[Target adjusted weight (g)]]*Table2[[#This Row],[FCR]])) -> 349.68
A20: 12 | B20: 425 | C20: =Table2[[#This Row],[Weight (g)]]*Table18[% of Target bodyweight] -> 425 | D20: 49 | E20: 32 | F20: 57 | G20: 406 | H20: 0.957 | I20: =Table2[[#This Row],[FCR]]*Table1820[% of Target bodyweight] -> 0.957 | J20: =IF('Flock input details'!$C$18>0,(Table2[[#This Row],[Target adjusted weight (g)]]*Table2[[#This Row],[Target adjusted FCR]]),(Table2[[#This Row],[Target adjusted weight (g)]]*Table2[[#This Row],[FCR]])) -> 406.725
A21: 13 | B21: 477 | C21: =Table2[[#This Row],[Weight (g)]]*Table18[% of Target bodyweight] -> 477 | D21: 52 | E21: 33 | F21: 62 | G21: 468 | H21: 0.982 | I21: =Table2[[#This Row],[FCR]]*Table1820[% of Target bodyweight] -> 0.982 | J21: =IF('Flock input details'!$C$18>0,(Table2[[#This Row],[Target adjusted weight (g)]]*Table2[[#This Row],[Target adjusted FCR]]),(Table2[[#This Row],[Target adjusted weight (g)]]*Table2[[#This Row],[FCR]])) -> 468.414
A22: 14 | B22: 533 | C22: =Table2[[#This Row],[Weight (g)]]*Table18[% of Target bodyweight] -> 533 | D22: 56 | E22: 35 | F22: 67 | G22: 535 | H22: 1.005 | I22: =Table2[[#This Row],[FCR]]*Table1820[% of Target bodyweight] -> 1.005 | J22: =IF('Flock input details'!$C$18>0,(Table2[[#This Row],[Target adjusted weight (g)]]*Table2[[#This Row],[Target adjusted FCR]]),(Table2[[#This Row],[Target adjusted weight (g)]]*Table2[[#This Row],[FCR]])) -> 535.665
A23: 15 | B23: 592 | C23: =Table2[[#This Row],[Weight (g)]]*Table18[% of Target bodyweight] -> 592 | D23: 59 | E23: 37 | F23: 72 | G23: 608 | H23: 1.026 | I23: =Table2[[#This Row],[FCR]]*Table1820[% of Target bodyweight] -> 1.026 | J23: =IF('Flock input details'!$C$18>0,(Table2[[#This Row],[Target adjusted weight (g)]]*Table2[[#This Row],[Target adjusted FCR]]),(Table2[[#This Row],[Target adjusted weight (g)]]*Table2[[#This Row],[FCR]])) -> 607.392
A24: 16 | B24: 655 | C24: =Table2[[#This Row],[Weight (g)]]*Table18[% of Target bodyweight] -> 655 | D24: 62 | E24: 38 | F24: 77 | G24: 685 | H24: 1.047 | I24: =Table2[[#This Row],[FCR]]*Table1820[% of Target bodyweight] -> 1.047 | J24: =IF('Flock input details'!$C$18>0,(Table2[[#This Row],[Target adjusted weight (g)]]*Table2[[#This Row],[Target adjusted FCR]]),(Table2[[#This Row],[Target adjusted weight (g)]]*Table2[[#This Row],[FCR]])) -> 685.785
A25: 17 | B25: 720 | C25: =Table2[[#This Row],[Weight (g)]]*Table18[% of Target bodyweight] -> 720 | D25: 66 | E25: 40 | F25: 83 | G25: 768 | H25: 1.066 | I25: =Table2[[#This Row],[FCR]]*Table1820[% of Target bodyweight] -> 1.066 | J25: =IF('Flock input details'!$C$18>0,(Table2[[#This Row],[Target adjusted weight (g)]]*Table2[[#This Row],[Target adjusted FCR]]),(Table2[[#This Row],[Target adjusted weight (g)]]*Table2[[#This Row],[FCR]])) -> 767.52
A26: 18 | B26: 789 | C26: =Table2[[#This Row],[Weight (g)]]*Table18[% of Target bodyweight] -> 789 | D26: 69 | E26: 41 | F26: 88 | G26: 856 | H26: 1.086 | I26: =Table2[[#This Row],[FCR]]*Table1820[% of Target bodyweight] -> 1.086 | J26: =IF('Flock input details'!$C$18>0,(Table2[[#This Row],[Target adjusted weight (g)]]*Table2[[#This Row],[Target adjusted FCR]]),(Table2[[#This Row],[Target adjusted weight (g)]]*Table2[[#This Row],[FCR]])) -> 856.854
A27: 19 | B27: 860 | C27: =Table2[[#This Row],[Weight (g)]]*Table18[% of Target bodyweight] -> 860 | D27: 72 | E27: 43 | F27: 94 | G27: 950 | H27: 1.105 | I27: =Table2[[#This Row],[FCR]]*Table1820[% of Target bodyweight] -> 1.105 | J27: =IF('Flock input details'!$C$18>0,(Table2[[#This Row],[Target adjusted weight (g)]]*Table2[[#This Row],[Target adjusted FCR]]),(Table2[[#This Row],[Target adjusted weight (g)]]*Table2[[#This Row],[FCR]])) -> 950.3
A28: 20 | B28: 935 | C28: =Table2[[#This Row],[Weight (g)]]*Table18[% of Target bodyweight] -> 935 | D28: 74 | E28: 45 | F28: 100 | G28: 1050 | H28: 1.123 | I28: =Table2[[#This Row],[FCR]]*Table1820[% of Target bodyweight] -> 1.123 | J28: =IF('Flock input details'!$C$18>0,(Table2[[#This Row],[Target adjusted weight (g)]]*Table2[[#This Row],[Target adjusted FCR]]),(Table2[[#This Row],[Target adjusted weight (g)]]*Table2[[#This Row],[FCR]])) -> 1050.005
A29: 21 | B29: 1012 | C29: =Table2[[#This Row],[Weight (g)]]*Table18[% of Target bodyweight] -> 1012 | D29: 77 | E29: 46 | F29: 105 | G29: 1155 | H29: 1.142 | I29: =Table2[[#This Row],[FCR]]*Table1820[% of Target bodyweight] -> 1.142 | J29: =IF('Flock input details'!$C$18>0,(Table2[[#This Row],[Target adjusted weight (g)]]*Table2[[#This Row],[Target adjusted FCR]]),(Table2[[#This Row],[Target adjusted weight (g)]]*Table2[[#This Row],[FCR]])) -> 1155.704
A30: 22 | B30: 1092 | C30: =Table2[[#This Row],[Weight (g)]]*Table18[% of Target bodyweight] -> 1092 | D30: 80 | E30: 48 | F30: 111 | G30: 1266 | H30: 1.16 | I30: =Table2[[#This Row],[FCR]]*Table1820[% of Target bodyweight] -> 1.16 | J30: =IF('Flock input details'!$C$18>0,(Table2[[#This Row],[Target adjusted weight (g)]]*Table2[[#This Row],[Target adjusted FCR]]),(Table2[[#This Row],[Target adjusted weight (g)]]*Table2[[#This Row],[FCR]])) -> 1266.72
A31: 23 | B31: 1174 | C31: =Table2[[#This Row],[Weight (g)]]*Table18[% of Target bodyweight] -> 1174 | D31: 82 | E31: 49 | F31: 117 | G31: 1383 | H31: 1.178 | I31: =Table2[[#This Row],[FCR]]*Table1820[% of Target bodyweight] -> 1.178 | J31: =IF('Flock input details'!$C$18>0,(Table2[[#This Row],[Target adjusted weight (g)]]*Table2[[#This Row],[Target adjusted FCR]]),(Table2[[#This Row],[Target adjusted weight (g)]]*Table2[[#This Row],[FCR]])) -> 1382.972
A32: 24 | B32: 1258 | C32: =Table2[[#This Row],[Weight (g)]]*Table18[% of Target bodyweight] -> 1258 | D32: 85 | E32: 51 | F32: 122 | G32: 1505 | H32: 1.196 | I32: =Table2[[#This Row],[FCR]]*Table1820[% of Target bodyweight] -> 1.196 | J32: =IF('Flock input details'!$C$18>0,(Table2[[#This Row],[Target adjusted weight (g)]]*Table2[[#This Row],[Target adjusted FCR]]),(Table2[[#This Row],[Target adjusted weight (g)]]*Table2[[#This Row],[FCR]])) -> 1504.568
A33: 25 | B33: 1345 | C33: =Table2[[#This Row],[Weight (g)]]*Table18[% of Target bodyweight] -> 1345 | D33: 87 | E33: 52 | F33: 128 | G33: 1633 | H33: 1.214 | I33: =Table2[[#This Row],[FCR]]*Table1820[% of Target bodyweight] -> 1.214 | J33: =IF('Flock input details'!$C$18>0,(Table2[[#This Row],[Target adjusted weight (g)]]*Table2[[#This Row],[Target adjusted FCR]]),(Table2[[#This Row],[Target adjusted weight (g)]]*Table2[[#This Row],[FCR]])) -> 1632.83
A34: 26 | B34: 1434 | C34: =Table2[[#This Row],[Weight (g)]]*Table18[% of Target bodyweight] -> 1434 | D34: 89 | E34: 53 | F34: 134 | G34: 1767 | H34: 1.233 | I34: =Table2[[#This Row],[FCR]]*Table1820[% of Target bodyweight] -> 1.233 | J34: =IF('Flock input details'!$C$18>0,(Table2[[#This Row],[Target adjusted weight (g)]]*Table2[[#This Row],[Target adjusted FCR]]),(Table2[[#This Row],[Target adjusted weight (g)]]*Table2[[#This Row],[FCR]])) -> 1768.122
A35: 27 | B35: 1524 | C35: =Table2[[#This Row],[Weight (g)]]*Table18[% of Target bodyweight] -> 1524 | D35: 91 | E35: 55 | F35: 139 | G35: 1907 | H35: 1.251 | I35: =Table2[[#This Row],[FCR]]*Table1820[% of Target bodyweight] -> 1.251 | J35: =IF('Flock input details'!$C$18>0,(Table2[[#This Row],[Target adjusted weight (g)]]*Table2[[#This Row],[Target adjusted FCR]]),(Table2[[#This Row],[Target adjusted weight (g)]]*Table2[[#This Row],[FCR]])) -> 1906.524
A36: 28 | B36: 1616 | C36: =Table2[[#This Row],[Weight (g)]]*Table18[% of Target bodyweight] -> 1616 | D36: 92 | E36: 56 | F36: 145 | G36: 2051 | H36: 1.269 | I36: =Table2[[#This Row],[FCR]]*Table1820[% of Target bodyweight] -> 1.269 | J36: =IF('Flock input details'!$C$18>0,(Table2[[#This Row],[Target adjusted weight (g)]]*Table2[[#This Row],[Target adjusted FCR]]),(Table2[[#This Row],[Target adjusted weight (g)]]*Table2[[#This Row],[FCR]])) -> 2050.704
A37: 29 | B37: 1710 | C37: =Table2[[#This Row],[Weight (g)]]*Table18[% of Target bodyweight] -> 1710 | D37: 94 | E37: 57 | F37: 150 | G37: 2202 | H37: 1.288 | I37: =Table2[[#This Row],[FCR]]*Table1820[% of Target bodyweight] -> 1.288 | J37: =IF('Flock input details'!$C$18>0,(Table2[[#This Row],[Target adjusted weight (g)]]*Table2[[#This Row],[Target adjusted FCR]]),(Table2[[#This Row],[Target adjusted weight (g)]]*Table2[[#This Row],[FCR]])) -> 2202.48
A38: 30 | B38: 1805 | C38: =Table2[[#This Row],[Weight (g)]]*Table18[% of Target bodyweight] -> 1805 | D38: 95 | E38: 59 | F38: 156 | G38: 2357 | H38: 1.306 | I38: =Table2[[#This Row],[FCR]]*Table1820[% of Target bodyweight] -> 1.306 | J38: =IF('Flock input details'!$C$18>0,(Table2[[#This Row],[Target adjusted weight (g)]]*Table2[[#This Row],[Target adjusted FCR]]),(Table2[[#This Row],[Target adjusted weight (g)]]*Table2[[#This Row],[FCR]])) -> 2357.33
A39: 31 | B39: 1901 | C39: =Table2[[#This Row],[Weight (g)]]*Table18[% of Target bodyweight] -> 1901 | D39: 96 | E39: 60 | F39: 161 | G39: 2518 | H39: 1.325 | I39: =Table2[[#This Row],[FCR]]*Table1820[% of Target bodyweight] -> 1.325 | J39: =IF('Flock input details'!$C$18>0,(Table2[[#This Row],[Target adjusted weight (g)]]*Table2[[#This Row],[Target adjusted FCR]]),(Table2[[#This Row],[Target adjusted weight (g)]]*Table2[[#This Row],[FCR]])) -> 2518.825
A40: 32 | B40: 1999 | C40: =Table2[[#This Row],[Weight (g)]]*Table18[% of Target bodyweight] -> 1999 | D40: 97 | E40: 61 | F40: 166 | G40: 2684 | H40: 1.343 | I40: =Table2[[#This Row],[FCR]]*Table1820[% of Target bodyweight] -> 1.343 | J40: =IF('Flock input details'!$C$18>0,(Table2[[#This Row],[Target adjusted weight (g)]]*Table2[[#This Row],[Target adjusted FCR]]),(Table2[[#This Row],[Target adjusted weight (g)]]*Table2[[#This Row],[FCR]])) -> 2684.657
A41: 33 | B41: 2091 | C41: =Table2[[#This Row],[Weight (g)]]*Table18[% of Target bodyweight] -> 2091 | D41: 98 | E41: 62 | F41: 171 | G41: 2855 | H41: 1.362 | I41: =Table2[[#This Row],[FCR]]*Table1820[% of Target bodyweight] -> 1.362 | J41: =IF('Flock input details'!$C$18>0,(Table2[[#This Row],[Target adjusted weight (g)]]*Table2[[#This Row],[Target adjusted FCR]]),(Table2[[#This Row],[Target adjusted weight (g)]]*Table2[[#This Row],[FCR]])) -> 2847.942
A42: 34 | B42: 2196 | C42: =Table2[[#This Row],[Weight (g)]]*Table18[% of Target bodyweight] -> 2196 | D42: 99 | E42: 63 | F42: 176 | G42: 3031 | H42: 1.381 | I42: =Table2[[#This Row],[FCR]]*Table1820[% of Target bodyweight] -> 1.381 | J42: =IF('Flock input details'!$C$18>0,(Table2[[#This Row],[Target adjusted weight (g)]]*Table2[[#This Row],[Target adjusted FCR]]),(Table2[[#This Row],[Target adjusted weight (g)]]*Table2[[#This Row],[FCR]])) -> 3032.676
A43: 35 | B43: 2296 | C43: =Table2[[#This Row],[Weight (g)]]*Table18[% of Target bodyweight] -> 2296 | D43: 100 | E43: 64 | F43: 180 | G43: 3211 | H43: 1.399 | I43: =Table2[[#This Row],[FCR]]*Table1820[% of Target bodyweight] -> 1.399 | J43: =IF('Flock input details'!$C$18>0,(Table2[[#This Row],[Target adjusted weight (g)]]*Table2[[#This Row],[Target adjusted FCR]]),(Table2[[#This Row],[Target adjusted weight (g)]]*Table2[[#This Row],[FCR]])) -> 3212.104
A44: 36 | B44: 2396 | C44: =Table2[[#This Row],[Weight (g)]]*Table18[% of Target bodyweight] -> 2396 | D44: 100 | E44: 65 | F44: 185 | G44: 3396 | H44: 1.418 | I44: =Table2[[#This Row],[FCR]]*Table1820[% of Target bodyweight] -> 1.418 | J44: =IF('Flock input details'!$C$18>0,(Table2[[#This Row],[Target adjusted weight (g)]]*Table2[[#This Row],[Target adjusted FCR]]),(Table2[[#This Row],[Target adjusted weight (g)]]*Table2[[#This Row],[FCR]])) -> 3397.528
A45: 37 | B45: 2496 | C45: =Table2[[#This Row],[Weight (g)]]*Table18[% of Target bodyweight] -> 2496 | D45: 100 | E45: 66 | F45: 189 | G45: 3584 | H45: 1.437 | I45: =Table2[[#This Row],[FCR]]*Table1820[% of Target bodyweight] -> 1.437 | J45: =IF('Flock input details'!$C$18>0,(Table2[[#This Row],[Target adjusted weight (g)]]*Table2[[#This Row],[Target adjusted FCR]]),(Table2[[#This Row],[Target adjusted weight (g)]]*Table2[[#This Row],[FCR]])) -> 3586.752
A46: 38 | B46: 2597 | C46: =Table2[[#This Row],[Weight (g)]]*Table18[% of Target bodyweight] -> 2597 | D46: 101 | E46: 67 | F46: 193 | G46: 3777 | H46: 1.456 | I46: =Table2[[#This Row],[FCR]]*Table1820[% of Target bodyweight] -> 1.456 | J46: =IF('Flock input details'!$C$18>0,(Table2[[#This Row],[Target adjusted weight (g)]]*Table2[[#This Row],[Target adjusted FCR]]),(Table2[[#This Row],[Target adjusted weight (g)]]*Table2[[#This Row],[FCR]])) -> 3781.232
A47: 39 | B47: 2697 | C47: =Table2[[#This Row],[Weight (g)]]*Table18[% of Target bodyweight] -> 2697 | D47: 101 | E47: 68 | F47: 197 | G47: 3974 | H47: 1.474 | I47: =Table2[[#This Row],[FCR]]*Table1820[% of Target bodyweight] -> 1.474 | J47: =IF('Flock input details'!$C$18>0,(Table2[[#This Row],[Target adjusted weight (g)]]*Table2[[#This Row],[Target adjusted FCR]]),(Table2[[#This Row],[Target adjusted weight (g)]]*Table2[[#This Row],[FCR]])) -> 3975.378
A48: 40 | B48: 2798 | C48: =Table2[[#This Row],[Weight (g)]]*Table18[% of Target bodyweight] -> 2798 | D48: 100 | E48: 69 | F48: 201 | G48: 4175 | H48: 1.493 | I48: =Table2[[#This Row],[FCR]]*Table1820[% of Target bodyweight] -> 1.493 | J48: =IF('Flock input details'!$C$18>0,(Table2[[#This Row],[Target adjusted weight (g)]]*Table2[[#This Row],[Target adjusted FCR]]),(Table2[[#This Row],[Target adjusted weight (g)]]*Table2[[#This Row],[FCR]])) -> 4177.414
A49: 41 | B49: 2898 | C49: =Table2[[#This Row],[Weight (g)]]*Table18[% of Target bodyweight] -> 2898 | D49: 100 | E49: 70 | F49: 204 | G49: 4379 | H49: 1.512 | I49: =Table2[[#This Row],[FCR]]*Table1820[% of Target bodyweight] -> 1.512 | J49: =IF('Flock input details'!$C$18>0,(Table2[[#This Row],[Target adjusted weight (g)]]*Table2[[#This Row],[Target adjusted FCR]]),(Table2[[#This Row],[Target adjusted weight (g)]]*Table2[[#This Row],[FCR]])) -> 4381.776
A50: 42 | B50: 2998 | C50: =Table2[[#This Row],[Weight (g)]]*Table18[% of Target bodyweight] -> 2998 | D50: 100 | E50: 70 | F50: 207 | G50: 4586 | H50: 1.531 | I50: =Table2[[#This Row],[FCR]]*Table1820[% of Target bodyweight] -> 1.531 | J50: =IF('Flock input details'!$C$18>0,(Table2[[#This Row],[Target adjusted weight (g)]]*Table2[[#This Row],[Target adjusted FCR]]),(Table2[[#This Row],[Target adjusted weight (g)]]*Table2[[#This Row],[FCR]])) -> 4589.938
A51: 43 | B51: 3097 | C51: =Table2[[#This Row],[Weight (g)]]*Table18[% of Target bodyweight] -> 3097 | D51: 100 | E51: 71 | F51: 211 | G51: 4797 | H51: 1.55 | I51: =Table2[[#This Row],[FCR]]*Table1820[% of Target bodyweight] -> 1.55 | J51: =IF('Flock input details'!$C$18>0,(Table2[[#This Row],[Target adjusted weight (g)]]*Table2[[#This Row],[Target adjusted FCR]]),(Table2[[#This Row],[Target adjusted weight (g)]]*Table2[[#This Row],[FCR]])) -> 4800.35
A52: 44 | B52: 3197 | C52: =Table2[[#This Row],[Weight (g)]]*Table18[% of Target bodyweight] -> 3197 | D52: 99 | E52: 72 | F52: 213 | G52: 5010 | H52: 1.569 | I52: =Table2[[#This Row],[FCR]]*Table1820[% of Target bodyweight] -> 1.569 | J52: =IF('Flock input details'!$C$18>0,(Table2[[#This Row],[Target adjusted weight (g)]]*Table2[[#This Row],[Target adjusted FCR]]),(Table2[[#This Row],[Target adjusted weight (g)]]*Table2[[#This Row],[FCR]])) -> 5016.093
A53: 45 | B53: 3295 | C53: =Table2[[#This Row],[Weight (g)]]*Table18[% of Target bodyweight] -> 3295 | D53: 98 | E53: 72 | F53: 216 | G53: 5226 | H53: 1.587 | I53: =Table2[[#This Row],[FCR]]*Table1820[% of Target bodyweight] -> 1.587 | J53: =IF('Flock input details'!$C$18>0,(Table2[[#This Row],[Target adjusted weight (g)]]*Table2[[#This Row],[Target adjusted FCR]]),(Table2[[#This Row],[Target adjusted weight (g)]]*Table2[[#This Row],[FCR]])) -> 5229.165
A54: 46 | B54: 3393 | C54: =Table2[[#This Row],[Weight (g)]]*Table18[% of Target bodyweight] -> 3393 | D54: 98 | E54: 73 | F54: 219 | G54: 5445 | H54: 1.606 | I54: =Table2[[#This Row],[FCR]]*Table1820[% of Target bodyweight] -> 1.606 | J54: =IF('Flock input details'!$C$18>0,(Table2[[#This Row],[Target adjusted weight (g)]]*Table2[[#This Row],[Target adjusted FCR]]),(Table2[[#This Row],[Target adjusted weight (g)]]*Table2[[#This Row],[FCR]])) -> 5449.158
A55: 47 | B55: 3490 | C55: =Table2[[#This Row],[Weight (g)]]*Table18[% of Target bodyweight] -> 3490 | D55: 97 | E55: 73 | F55: 221 | G55: 5666 | H55: 1.625 | I55: =Table2[[#This Row],[FCR]]*Table1820[% of Target bodyweight] -> 1.625 | J55: =IF('Flock input details'!$C$18>0,(Table2[[#This Row],[Target adjusted weight (g)]]*Table2[[#This Row],[Target adjusted FCR]]),(Table2[[#This Row],[Target adjusted weight (g)]]*Table2[[#This Row],[FCR]])) -> 5671.25
A56: 48 | B56: 3586 | C56: =Table2[[#This Row],[Weight (g)]]*Table18[% of Target bodyweight] -> 3586 | D56: 96 | E56: 74 | F56: 223 | G56: 5890 | H56: 1.644 | I56: =Table2[[#This Row],[FCR]]*Table1820[% of Target bodyweight] -> 1.644 | J56: =IF('Flock input details'!$C$18>0,(Table2[[#This Row],[Target adjusted weight (g)]]*Table2[[#This Row],[Target adjusted FCR]]),(Table2[[#This Row],[Target adjusted weight (g)]]*Table2[[#This Row],[FCR]])) -> 5895.384
A57: 49 | B57: 3681 | C57: =Table2[[#This Row],[Weight (g)]]*Table18[% of Target bodyweight] -> 3681 | D57: 95 | E57: 74 | F57: 225 | G57: 6115 | H57: 1.663 | I57: =Table2[[#This Row],[FCR]]*Table1820[% of Target bodyweight] -> 1.663 | J57: =IF('Flock input details'!$C$18>0,(Table2[[#This Row],[Target adjusted weight (g)]]*Table2[[#This Row],[Target adjusted FCR]]),(Table2[[#This Row],[Target adjusted weight (g)]]*Table2[[#This Row],[FCR]])) -> 6121.503
A58: 50 | B58: 3776 | C58: =Table2[[#This Row],[Weight (g)]]*Table18[% of Target bodyweight] -> 3776 | D58: 94 | E58: 75 | F58: 227 | G58: 6342 | H58: 1.681 | I58: =Table2[[#This Row],[FCR]]*Table1820[% of Target bodyweight] -> 1.681 | J58: =IF('Flock input details'!$C$18>0,(Table2[[#This Row],[Target adjusted weight (g)]]*Table2[[#This Row],[Target adjusted FCR]]),(Table2[[#This Row],[Target adjusted weight (g)]]*Table2[[#This Row],[FCR]])) -> 6347.456
A59: 51 | B59: 3869 | C59: =Table2[[#This Row],[Weight (g)]]*Table18[% of Target bodyweight] -> 3869 | D59: 93 | E59: 75 | F59: 229 | G59: 6571 | H59: 1.7 | I59: =Table2[[#This Row],[FCR]]*Table1820[% of Target bodyweight] -> 1.7 | J59: =IF('Flock input details'!$C$18>0,(Table2[[#This Row],[Target adjusted weight (g)]]*Table2[[#This Row],[Target adjusted FCR]]),(Table2[[#This Row],[Target adjusted weight (g)]]*Table2[[#This Row],[FCR]])) -> 6577.3
A60: 52 | B60: 3961 | C60: =Table2[[#This Row],[Weight (g)]]*Table18[% of Target bodyweight] -> 3961 | D60: 92 | E60: 75 | F60: 230 | G60: 6801 | H60: 1.719 | I60: =Table2[[#This Row],[FCR]]*Table1820[% of Target bodyweight] -> 1.719 | J60: =IF('Flock input details'!$C$18>0,(Table2[[#This Row],[Target adjusted weight (g)]]*Table2[[#This Row],[Target adjusted FCR]]),(Table2[[#This Row],[Target adjusted weight (g)]]*Table2[[#This Row],[FCR]])) -> 6808.959
A61: 53 | B61: 4052 | C61: =Table2[[#This Row],[Weight (g)]]*Table18[% of Target bodyweight] -> 4052 | D61: 91 | E61: 76 | F61: 231 | G61: 7032 | H61: 1.738 | I61: =Table2[[#This Row],[FCR]]*Table1820[% of Target bodyweight] -> 1.738 | J61: =IF('Flock input details'!$C$18>0,(Table2[[#This Row],[Target adjusted weight (g)]]*Table2[[#This Row],[Target adjusted FCR]]),(Table2[[#This Row],[Target adjusted weight (g)]]*Table2[[#This Row],[FCR]])) -> 7042.376
A62: 54 | B62: 4142 | C62: =Table2[[#This Row],[Weight (g)]]*Table18[% of Target bodyweight] -> 4142 | D62: 90 | E62: 76 | F62: 233 | G62: 7265 | H62: 1.756 | I62: =Table2[[#This Row],[FCR]]*Table1820[% of Target bodyweight] -> 1.756 | J62: =IF('Flock input details'!$C$18>0,(Table2[[#This Row],[Target adjusted weight (g)]]*Table2[[#This Row],[Target adjusted FCR]]),(Table2[[#This Row],[Target adjusted weight (g)]]*Table2[[#This Row],[FCR]])) -> 7273.352
A63: 55 | B63: 4230 | C63: =Table2[[#This Row],[Weight (g)]]*Table18[% of Target bodyweight] -> 4230 | D63: 89 | E63: 76 | F63: 233 | G63: 7498 | H63: 1.775 | I63: =Table2[[#This Row],[FCR]]*Table1820[% of Target bodyweight] -> 1.775 | J63: =IF('Flock input details'!$C$18>0,(Table2[[#This Row],[Target adjusted weight (g)]]*Table2[[#This Row],[Target adjusted FCR]]),(Table2[[#This Row],[Target adjusted weight (g)]]*Table2[[#This Row],[FCR]])) -> 7508.25
A64: 56 | B64: 4318 | C64: =Table2[[#This Row],[Weight (g)]]*Table18[% of Target bodyweight] -> 4318 | D64: 87 | E64: 76 | F64: 234 | G64: 7733 | H64: 1.793 | I64: =Table2[[#This Row],[FCR]]*Table1820[% of Target bodyweight] -> 1.793 | J64: =IF('Flock input details'!$C$18>0,(Table2[[#This Row],[Target adjusted weight (g)]]*Table2[[#This Row],[Target adjusted FCR]]),(Table2[[#This Row],[Target adjusted weight (g)]]*Table2[[#This Row],[FCR]])) -> 7742.174
A67: Table 2. Protein/Nitrogen Conversion Factor
A68: Source: | B68: Poultry 02
A69: Factor to convert crude protein content to total nitrogen content. E.g. g protein in the feed per g N in the feed.
A71: Crude protein to nitrogen conversion factor: | B71: Phosphorus to phosphate conversion factor
A72: 6.25
A75: Table 3. Effect of Phytase on intake and excretion of dry matter, phosphorus, and nitrogen
A76: Source: | B76: Poultry 03 | C76: Assuena (2009)
A77: Phytase feed additive intake impacts. One FTU is one phytase unit.
A79: Phytase amount | B79: Dry matter intake (DMI) (g) | C79: Phosphorus intake (PI) (g) | D79: Nitrogen intake (NI) (g) | E79: Dry matter excreta (DME) (g) | F79: Phosphorus excreta (PE) (g) | G79: Nitrogen excreta (NE) (g)
A80: Control | B80: 648 | C80: 4.14 | D80: 20.65 | E80: 173 | F80: 3.06 | G80: 10.98
A81: 250 FTU/kg | B81: 640 | C81: 4.03 | D81: 21.13 | E81: 162 | F81: 2.84 | G81: 10.76
A82: 500 FTU/kg | B82: 659 | C82: 3.89 | D82: 20.45 | E82: 182 | F82: 2.7 | G82: 11.82
A83: 750 FTU/kg | B83: 685 | C83: 3.7 | D83: 21.31 | E83: 188 | F83: 2.34 | G83: 11.14
A84: 1000 FTU/kg | B84: 659 | C84: 3.29 | D84: 22.52 | E84: 185 | F84: 1.88 | G84: 11.8

Sheet Calculations - Dataset (hidden)
A1: Calculations
A3: Table 1. Bodyweight and Cumulative feed intake
A4: Source: | B4: Poultry 01 | C4: ROSS308
A5: This table contains the assumed bodyweights and cumulative feed intake for the animals based on the ROSS308 performance objectives and the end day of each phase
A7: Diet type | B7: Bodyweight (g) | C7: Cum. feed intake (g) | D7: FCR | E7: Cum Feed Intake (g) (adjusted for FCR and 7 day mortality) | F7: Wholewheat intake (%) | G7: Compound feed intake (%) | H7: Wholewheat intake (g) | I7: Compound feed intake (g) | J7: Sum of feed (g)
A8: ='Diet input details'!C6 -> Editable entry cell | B8: =VLOOKUP('Diet input details'!E20,Perf_Data,2) -> 0 | C8: =VLOOKUP('Diet input details'!E20,Perf_Data,7) -> 0 | D8: =VLOOKUP('Diet input details'!E20,Perf_Data,8) -> 0 | E8: =VLOOKUP('Diet input details'!E20,Perf_Data,10) -> 0 | F8: ='Diet input details'!F20 -> 0 | G8: =1-F8 -> 1 | H8: =IF(Table1_bw_feed_intake[[#This Row],[Cum Feed Intake (g) (adjusted for FCR and 7 day mortality)]]>0,F8*E8,0) -> 0 | I8: =IF(Table1_bw_feed_intake[[#This Row],[Cum Feed Intake (g) (adjusted for FCR and 7 day mortality)]]>0,G8*E8,0) -> 0 | J8: N/A
A9: ='Diet input details'!C7 -> Editable entry cell | B9: =VLOOKUP('Diet input details'!E21,Perf_Data,2) -> 0 | C9: =VLOOKUP('Diet input details'!E21,Perf_Data,7) -> 0 | D9: =VLOOKUP('Diet input details'!E21,Perf_Data,8) -> 0 | E9: =VLOOKUP('Diet input details'!E21,Perf_Data,10) -> 0 | F9: ='Diet input details'!F21 -> 0 | G9: =1-F9 -> 1 | H9: =IF(Table1_bw_feed_intake[[#This Row],[Cum Feed Intake (g) (adjusted for FCR and 7 day mortality)]]>0,F9*(E9-E8),0) -> 0 | I9: =IF(Table1_bw_feed_intake[[#This Row],[Cum Feed Intake (g) (adjusted for FCR and 7 day mortality)]]>0,G9*(E9-E8),0) -> 0 | J9: N/A
A10: ='Diet input details'!C8 -> Editable entry cell | B10: =VLOOKUP('Diet input details'!E22,Perf_Data,2) -> 0 | C10: =VLOOKUP('Diet input details'!E22,Perf_Data,7) -> 0 | D10: =VLOOKUP('Diet input details'!E22,Perf_Data,8) -> 0 | E10: =VLOOKUP('Diet input details'!E22,Perf_Data,10) -> 0 | F10: ='Diet input details'!F22 -> 0 | G10: 1 | H10: =IF(Table1_bw_feed_intake[[#This Row],[Cum Feed Intake (g) (adjusted for FCR and 7 day mortality)]]>0,F10*(E10-E9),0) -> 0 | I10: =IF(Table1_bw_feed_intake[[#This Row],[Cum Feed Intake (g) (adjusted for FCR and 7 day mortality)]]>0,G10*(E10-E9),0) -> 0 | J10: N/A
A11: ='Diet input details'!C9 -> Editable entry cell | B11: =VLOOKUP('Diet input details'!E23,Perf_Data,2) -> 0 | C11: =VLOOKUP('Diet input details'!E23,Perf_Data,7) -> 0 | D11: =VLOOKUP('Diet input details'!E23,Perf_Data,8) -> 0 | E11: =VLOOKUP('Diet input details'!E23,Perf_Data,10) -> 0 | F11: ='Diet input details'!F23 -> 0 | G11: 1 | H11: =IF(Table1_bw_feed_intake[[#This Row],[Cum Feed Intake (g) (adjusted for FCR and 7 day mortality)]]>0,F11*(E11-E10),0) -> 0 | I11: =IF(Table1_bw_feed_intake[[#This Row],[Cum Feed Intake (g) (adjusted for FCR and 7 day mortality)]]>0,G11*(E11-E10),0) -> 0 | J11: N/A
A12: ='Diet input details'!C10 -> Editable entry cell | B12: =VLOOKUP('Diet input details'!E24,Perf_Data,2) -> 0 | C12: =VLOOKUP('Diet input details'!E24,Perf_Data,7) -> 0 | D12: =VLOOKUP('Diet input details'!E24,Perf_Data,8) -> 0 | E12: =VLOOKUP('Diet input details'!E24,Perf_Data,10) -> 0 | F12: ='Diet input details'!F24 -> 0 | G12: 1 | H12: =IF(Table1_bw_feed_intake[[#This Row],[Cum Feed Intake (g) (adjusted for FCR and 7 day mortality)]]>0,F12*(E12-E11),0) -> 0 | I12: =IF(Table1_bw_feed_intake[[#This Row],[Cum Feed Intake (g) (adjusted for FCR and 7 day mortality)]]>0,G12*(E12-E11),0) -> 0 | J12: N/A
A13: ='Diet input details'!C11 -> Editable entry cell | B13: =VLOOKUP('Diet input details'!E25,Perf_Data,2) -> 0 | C13: =VLOOKUP('Diet input details'!E25,Perf_Data,7) -> 0 | D13: =VLOOKUP('Diet input details'!E25,Perf_Data,8) -> 0 | E13: =VLOOKUP('Diet input details'!E25,Perf_Data,10) -> 0 | F13: ='Diet input details'!F25 -> 0 | G13: 1 | H13: =IF(Table1_bw_feed_intake[[#This Row],[Cum Feed Intake (g) (adjusted for FCR and 7 day mortality)]]>0,F13*(E13-E12),0) -> 0 | I13: =IF(Table1_bw_feed_intake[[#This Row],[Cum Feed Intake (g) (adjusted for FCR and 7 day mortality)]]>0,G13*(E13-E12),0) -> 0 | J13: N/A
A14: ='Diet input details'!C12 -> Editable entry cell | B14: =VLOOKUP('Diet input details'!E26,Perf_Data,2) -> 0 | C14: =VLOOKUP('Diet input details'!E26,Perf_Data,7) -> 0 | D14: =VLOOKUP('Diet input details'!E26,Perf_Data,8) -> 0 | E14: =VLOOKUP('Diet input details'!E26,Perf_Data,10) -> 0 | F14: ='Diet input details'!F26 -> 0 | G14: 1 | H14: =IF(Table1_bw_feed_intake[[#This Row],[Cum Feed Intake (g) (adjusted for FCR and 7 day mortality)]]>0,F14*(E14-E13),0) -> 0 | I14: =IF(Table1_bw_feed_intake[[#This Row],[Cum Feed Intake (g) (adjusted for FCR and 7 day mortality)]]>0,G14*(E14-E13),0) -> 0 | J14: N/A
A15: ='Diet input details'!C13 -> Editable entry cell | B15: =VLOOKUP('Diet input details'!E27,Perf_Data,2) -> 0 | C15: =VLOOKUP('Diet input details'!E27,Perf_Data,7) -> 0 | D15: =VLOOKUP('Diet input details'!E27,Perf_Data,8) -> 0 | E15: =VLOOKUP('Diet input details'!E27,Perf_Data,10) -> 0 | F15: ='Diet input details'!F27 -> 0 | G15: 1 | H15: =IF(Table1_bw_feed_intake[[#This Row],[Cum Feed Intake (g) (adjusted for FCR and 7 day mortality)]]>0,F15*(E15-E14),0) -> 0 | I15: =IF(Table1_bw_feed_intake[[#This Row],[Cum Feed Intake (g) (adjusted for FCR and 7 day mortality)]]>0,G15*(E15-E14),0) -> 0 | J15: N/A
A16: ='Diet input details'!C14 -> Editable entry cell | B16: =VLOOKUP('Diet input details'!E28,Perf_Data,2) -> 0 | C16: =VLOOKUP('Diet input details'!E28,Perf_Data,7) -> 0 | D16: =VLOOKUP('Diet input details'!E28,Perf_Data,8) -> 0 | E16: =VLOOKUP('Diet input details'!E28,Perf_Data,10) -> 0 | F16: ='Diet input details'!F28 -> 0 | G16: 1 | H16: =IF(Table1_bw_feed_intake[[#This Row],[Cum Feed Intake (g) (adjusted for FCR and 7 day mortality)]]>0,F16*(E16-E15),0) -> 0 | I16: =IF(Table1_bw_feed_intake[[#This Row],[Cum Feed Intake (g) (adjusted for FCR and 7 day mortality)]]>0,G16*(E16-E15),0) -> 0 | J16: N/A
A17: Total | B17: =SUMIF(B8:B16,"<>#N/A") -> 0 | C17: =SUMIF(C8:C16,"<>#N/A") -> 0 | H17: =SUMIF(H8:H16,"<>#N/A") -> 0 | I17: =SUMIF(I8:I16,"<>#N/A") -> 0 | J17: =SUM(Table1_bw_feed_intake[[#This Row],[Wholewheat intake (g)]:[Compound feed intake (g)]]) -> 0
A20: Table 2. N and P Intake
A21: Source: | B21: N/A
A22: This table contains the N and P intake at each phase based on the cumulative feed intake (Table 1 from 'Data tables'), and the nutrient status of the feed (from 'Diet input details')
A24: Diet type | B24: Feed Nitrogen conc. (%) | C24: Feed Phosphorus conc. (%) | D24: Wholewheat Nitrogen conc. (%) | E24: Wholewheat Phosphorus conc. (%) | F24: Compound feed Nitrogen consumed (g) | G24: Compound feed Phosphorus consumed (g) | H24: Wholewheat Nitrogen consumed (g) | I24: Wholewheat Phosphorus consumed (g) | J24: Total Nitrogen consumed (g) | K24: Total Phosphorus consumed (g)
A25: =A8 -> Editable entry cell | B25: ='Diet input details'!E6 -> 0 | C25: ='Diet input details'!F6 -> 0 | D25: ='Diet input details'!$E$15 -> 0 | E25: ='Diet input details'!$F$15 -> 0 | F25: =B25%*I8 -> 0 | G25: =C25%*I8 -> 0 | H25: =D25%*H8 -> 0 | I25: =E25%*H8 -> 0 | J25: =F25+H25 -> 0 | K25: =G25+I25 -> 0
A26: =A9 -> Editable entry cell | B26: ='Diet input details'!E7 -> 0 | C26: ='Diet input details'!F7 -> 0 | D26: ='Diet input details'!$E$15 -> 0 | E26: ='Diet input details'!$F$15 -> 0 | F26: =B26%*I9 -> 0 | G26: =C26%*I9 -> 0 | H26: =D26%*H9 -> 0 | I26: =E26%*H9 -> 0 | J26: =F26+H26 -> 0 | K26: =G26+I26 -> 0
A27: Editable entry cell | B27: ='Diet input details'!E8 -> 0 | C27: ='Diet input details'!F8 -> 0 | D27: ='Diet input details'!$E$15 -> 0 | E27: ='Diet input details'!$F$15 -> 0 | F27: =B27%*I10 -> 0 | G27: 0 | H27: 0 | I27: 0 | J27: 0 | K27: =G27+I27 -> 0
A28: Editable entry cell | B28: ='Diet input details'!E9 -> 0 | C28: ='Diet input details'!F9 -> 0 | D28: ='Diet input details'!$E$15 -> 0 | E28: ='Diet input details'!$F$15 -> 0 | F28: =B28%*I11 -> 0 | G28: =C28%*I11 -> 0 | H28: 0 | I28: 0 | J28: 0 | K28: 0
A29: Editable entry cell | B29: ='Diet input details'!E10 -> 0 | C29: ='Diet input details'!F10 -> 0 | D29: ='Diet input details'!$E$15 -> 0 | E29: ='Diet input details'!$F$15 -> 0 | F29: =B29%*I12 -> 0 | G29: 0 | H29: =D29%*H12 -> 0 | I29: 0 | J29: 0 | K29: 0
A30: Editable entry cell | B30: ='Diet input details'!E11 -> 0 | C30: ='Diet input details'!F11 -> 0 | D30: ='Diet input details'!$E$15 -> 0 | E30: ='Diet input details'!$F$15 -> 0 | F30: 0 | G30: =C30%*I13 -> 0 | H30: 0 | I30: 0 | J30: 0 | K30: 0
A31: Editable entry cell | B31: ='Diet input details'!E12 -> 0 | C31: ='Diet input details'!F12 -> 0 | D31: ='Diet input details'!$E$15 -> 0 | E31: ='Diet input details'!$F$15 -> 0 | F31: 0 | G31: 0 | H31: 0 | I31: 0 | J31: 0 | K31: 0
A32: Editable entry cell | B32: ='Diet input details'!E13 -> 0 | C32: ='Diet input details'!F13 -> 0 | D32: ='Diet input details'!$E$15 -> 0 | E32: ='Diet input details'!$F$15 -> 0 | F32: =B32%*I15 -> 0 | G32: 0 | H32: 0 | I32: 0 | J32: =F32+H32 -> 0 | K32: =G32+I32 -> 0
A33: Editable entry cell | B33: ='Diet input details'!E14 -> 0 | C33: ='Diet input details'!F14 -> 0 | D33: ='Diet input details'!$E$15 -> 0 | E33: ='Diet input details'!$F$15 -> 0 | F33: 0 | G33: =C33%*I16 -> 0 | H33: 0 | I33: 0 | J33: 0 | K33: 0
A34: Total | F34: =SUMIF(F25:F33,"<>#N/A") -> 0 | G34: =SUMIF(G25:G33,"<>#N/A") -> 0 | H34: 0 | I34: 0 | J34: 0 | K34: 0
A37: Table 3. Effect of Phytase
A38: Source: | B38: Poultry 03 | C38: Assuena (2009)
A39: This table shows how the effect of phytase has been calculated based on the data pulled from Assuena (2009), as well as the cumulative feed intake adjusted to account for this impact
A42: Phytase amount (FTU) | B42: Dry Matter Intake(g) | C42: Phosphorus Intake(g) | D42: Nitrogen Intake(g) | E42: Dry Matter Excreted(g) | F42: Phosphorus Excreted(g) | G42: Nitrogen Excreted(g) | H42: Dry Matter Excretion Factor | I42: Phosphorus Excretion Factor | J42: Nitrogen Excretion Factor | K42: Dry Matter Absorption Factor | L42: Phosphorus Absorption Factor | M42: Nitrogen Absorption Factor
A43: None | B43: 648 | C43: 4.14 | D43: 20.65 | E43: 173 | F43: 3.06 | G43: 10.98 | H43: =E43/B43 -> 0.2669753086 | I43: =F43/C43 -> 0.7391304348 | J43: =G43/D43 -> 0.5317191283 | K43: =1-H43 -> 0.7330246914 | L43: =1-I43 -> 0.2608695652 | M43: =1-J43 -> 0.4682808717
A44: 250 FTU/kg | B44: 640 | C44: 4.03 | D44: 21.13 | E44: 162 | F44: 2.84 | G44: 10.76 | H44: =E44/B44 -> 0.253125 | I44: =F44/C44 -> 0.7047146402 | J44: =G44/D44 -> 0.509228585 | K44: =1-H44 -> 0.746875 | L44: =1-I44 -> 0.2952853598 | M44: =1-J44 -> 0.490771415
A45: 500 FTU/kg | B45: 659 | C45: 3.89 | D45: 20.45 | E45: 182 | F45: 2.7 | G45: 11.82 | H45: =E45/B45 -> 0.2761760243 | I45: 0.6940874036 | J45: 0.57799511 | K45: 0.7238239757 | L45: =1-I45 -> 0.3059125964 | M45: 0.42200489
A46: 750 FTU/kg | B46: 685 | C46: 3.7 | D46: 21.31 | E46: 188 | F46: 2.34 | G46: 11.14 | H46: 0.2744525547 | I46: 0.6324324324 | J46: 0.5227592679 | K46: 0.7255474453 | L46: 0.3675675676 | M46: 0.4772407321
A47: 1000 FTU/kg | B47: 659 | C47: 3.29 | D47: 22.52 | E47: 185 | F47: 1.88 | G47: 11.8 | H47: 0.2807283763 | I47: 0.5714285714 | J47: =G47/D47 -> 0.5239786856 | K47: 0.7192716237 | L47: 0.4285714286 | M47: 0.4760213144
A50: Table 4. Applying Phytase Effect
A51: Source: | B51: Poultry 03 | C51: Assuena (2009)/Table 3
A52: Presents the N and P retention factors that will be used from Table 3 above (from 'Dataset').
A54: Retention factor | B54: Value
A55: P Retention Factor | B55: =VLOOKUP('Diet input details'!E32,'Calculations - Dataset'!A42:M47,12,FALSE) -> 0.2608695652
A56: N Retention Factor | B56: 0.4682808717
A59: Table 5. N and P Retained
A60: Source: | B60: Table 2/Table 4 from 'Dataset'
A61: This table shows the amount of N and P that is retained in the body weight of the animal
A63: Diet type | B63: Nitrogen retained (g) | C63: Phosphorus retained (g)
A64: =A8 -> Editable entry cell | B64: =J25*$B$56 -> 0 | C64: =K25*$B$55 -> 0
A65: =A9 -> Editable entry cell | B65: =J26*$B$56 -> 0 | C65: 0
A66: Editable entry cell | B66: 0 | C66: 0
A67: Editable entry cell | B67: 0 | C67: 0
A68: Editable entry cell | B68: 0 | C68: =K29*$B$55 -> 0
A69: Editable entry cell | B69: =J30*$B$56 -> 0 | C69: 0
A70: Editable entry cell | B70: 0 | C70: 0
A71: Editable entry cell | B71: 0 | C71: 0
A72: Editable entry cell | B72: 0 | C72: 0
A74: Table 6. N and P excreted
A75: Source: | B75: Table 5 from 'Dataset'
A76: N and P ingested (Table 2 from 'Dataset') take away N and P retained (Table 4 from 'Dataset')
A78: Diet type | B78: Nitrogen excreted (g) | C78: Phosphorus excreted (g)
A79: =A8 -> Editable entry cell | B79: =J25-B64 -> 0 | C79: =K25-C64 -> 0
A80: =A9 -> Editable entry cell | B80: 0 | C80: 0
A81: Editable entry cell | B81: 0 | C81: 0
A82: Editable entry cell | B82: 0 | C82: 0
A83: Editable entry cell | B83: 0 | C83: 0
A84: Editable entry cell | B84: 0 | C84: 0
A85: Editable entry cell | B85: 0 | C85: 0
A86: Editable entry cell | B86: =J32-B71 -> 0 | C86: =K32-C71 -> 0
A87: Editable entry cell | B87: 0 | C87: 0
A89: Table 7. Thinning Values
A90: Source: | B90: Model 1 - flock or herd details'
A91: This table presents the thinning factors that can be used to adjust the excretion values from Table 5 (from 'Dataset')
B93: Thinning %
B94: ='Flock input details'!E11 -> 0
B95: ='Flock input details'!E12 -> 0
B96: ='Flock input details'!E13 -> 0
A97: 100% check | B97: =SUM(B94:B96)=100% -> FALSE
A100: Table 8. Thinned Excretion Values
A101: Source: | B101: Table 6/Table 7
A102: This table presents the N and P excretion from Table 6, adjusted to reflect the amount of birds thinned using the thinning value in Table 7 (from 'Dataset')
A104: Diet type | B104: Ration End Day | C104: Thinning Factor | D104: Nitrogen Excreted (g) | E104: Phosphorus Excreted (g) | F104: Thinned Nitrogen Excretion (g) | G104: Thinned Phosphorus Excretion (g)
A105: =A8 -> Editable entry cell | B105: ='Diet input details'!E20 -> 0 | C105: =IF(Table8_thin_ex[[#This Row],[Ration End Day]]>'Flock input details'!$C$13,'Flock input details'!$E$13,IF(Table8_thin_ex[[#This Row],[Ration End Day]]>'Flock input details'!$C$11,IF(Table8_thin_ex[[#This Row],[Ration End Day]]>'Flock input details'!$C$12,('Calculations - Dataset'!$B$94+'Calculations - Dataset'!$B$95),'Calculations - Dataset'!$B$94),0)) -> 0 | D105: =B79 -> 0 | E105: =C79 -> 0 | F105: =Table8_thin_ex[[#This Row],[Nitrogen Excreted (g)]]*(1-Table8_thin_ex[[#This Row],[Thinning Factor]]) -> 0 | G105: =Table8_thin_ex[[#This Row],[Phosphorus Excreted (g)]]*(1-Table8_thin_ex[[#This Row],[Thinning Factor]]) -> 0
A106: =A9 -> Editable entry cell | B106: ='Diet input details'!E21 -> 0 | C106: =IF(Table8_thin_ex[[#This Row],[Ration End Day]]>'Flock input details'!$C$13,'Flock input details'!$E$13,IF(Table8_thin_ex[[#This Row],[Ration End Day]]>'Flock input details'!$C$11,IF(Table8_thin_ex[[#This Row],[Ration End Day]]>'Flock input details'!$C$12,('Calculations - Dataset'!$B$94+'Calculations - Dataset'!$B$95),'Calculations - Dataset'!$B$94),0)) -> 0 | D106: =B80 -> 0 | E106: 0 | F106: =Table8_thin_ex[[#This Row],[Nitrogen Excreted (g)]]*(1-Table8_thin_ex[[#This Row],[Thinning Factor]]) -> 0 | G106: =Table8_thin_ex[[#This Row],[Phosphorus Excreted (g)]]*(1-Table8_thin_ex[[#This Row],[Thinning Factor]]) -> 0
A107: Editable entry cell | B107: ='Diet input details'!E22 -> 0 | C107: =IF(Table8_thin_ex[[#This Row],[Ration End Day]]>'Flock input details'!$C$13,'Flock input details'!$E$13,IF(Table8_thin_ex[[#This Row],[Ration End Day]]>'Flock input details'!$C$11,IF(Table8_thin_ex[[#This Row],[Ration End Day]]>'Flock input details'!$C$12,('Calculations - Dataset'!$B$94+'Calculations - Dataset'!$B$95),'Calculations - Dataset'!$B$94),0)) -> 0 | D107: 0 | E107: 0 | F107: =Table8_thin_ex[[#This Row],[Nitrogen Excreted (g)]]*(1-Table8_thin_ex[[#This Row],[Thinning Factor]]) -> 0 | G107: =Table8_thin_ex[[#This Row],[Phosphorus Excreted (g)]]*(1-Table8_thin_ex[[#This Row],[Thinning Factor]]) -> 0
A108: Editable entry cell | B108: ='Diet input details'!E23 -> 0 | C108: =IF(Table8_thin_ex[[#This Row],[Ration End Day]]>'Flock input details'!$C$13,'Flock input details'!$E$13,IF(Table8_thin_ex[[#This Row],[Ration End Day]]>'Flock input details'!$C$11,IF(Table8_thin_ex[[#This Row],[Ration End Day]]>'Flock input details'!$C$12,('Calculations - Dataset'!$B$94+'Calculations - Dataset'!$B$95),'Calculations - Dataset'!$B$94),0)) -> 0 | D108: 0 | E108: 0 | F108: =Table8_thin_ex[[#This Row],[Nitrogen Excreted (g)]]*(1-Table8_thin_ex[[#This Row],[Thinning Factor]]) -> 0 | G108: =Table8_thin_ex[[#This Row],[Phosphorus Excreted (g)]]*(1-Table8_thin_ex[[#This Row],[Thinning Factor]]) -> 0
A109: Editable entry cell | B109: ='Diet input details'!E24 -> 0 | C109: =IF(Table8_thin_ex[[#This Row],[Ration End Day]]>'Flock input details'!$C$13,'Flock input details'!$E$13,IF(Table8_thin_ex[[#This Row],[Ration End Day]]>'Flock input details'!$C$11,IF(Table8_thin_ex[[#This Row],[Ration End Day]]>'Flock input details'!$C$12,('Calculations - Dataset'!$B$94+'Calculations - Dataset'!$B$95),'Calculations - Dataset'!$B$94),0)) -> 0 | D109: 0 | E109: 0 | F109: =Table8_thin_ex[[#This Row],[Nitrogen Excreted (g)]]*(1-Table8_thin_ex[[#This Row],[Thinning Factor]]) -> 0 | G109: =Table8_thin_ex[[#This Row],[Phosphorus Excreted (g)]]*(1-Table8_thin_ex[[#This Row],[Thinning Factor]]) -> 0
A110: Editable entry cell | B110: ='Diet input details'!E25 -> 0 | C110: =IF(Table8_thin_ex[[#This Row],[Ration End Day]]>'Flock input details'!$C$13,'Flock input details'!$E$13,IF(Table8_thin_ex[[#This Row],[Ration End Day]]>'Flock input details'!$C$11,IF(Table8_thin_ex[[#This Row],[Ration End Day]]>'Flock input details'!$C$12,('Calculations - Dataset'!$B$94+'Calculations - Dataset'!$B$95),'Calculations - Dataset'!$B$94),0)) -> 0 | D110: 0 | E110: 0 | F110: =Table8_thin_ex[[#This Row],[Nitrogen Excreted (g)]]*(1-Table8_thin_ex[[#This Row],[Thinning Factor]]) -> 0 | G110: =Table8_thin_ex[[#This Row],[Phosphorus Excreted (g)]]*(1-Table8_thin_ex[[#This Row],[Thinning Factor]]) -> 0
A111: Editable entry cell | B111: ='Diet input details'!E26 -> 0 | C111: =IF(Table8_thin_ex[[#This Row],[Ration End Day]]>'Flock input details'!$C$13,'Flock input details'!$E$13,IF(Table8_thin_ex[[#This Row],[Ration End Day]]>'Flock input details'!$C$11,IF(Table8_thin_ex[[#This Row],[Ration End Day]]>'Flock input details'!$C$12,('Calculations - Dataset'!$B$94+'Calculations - Dataset'!$B$95),'Calculations - Dataset'!$B$94),0)) -> 0 | D111: 0 | E111: 0 | F111: =Table8_thin_ex[[#This Row],[Nitrogen Excreted (g)]]*(1-Table8_thin_ex[[#This Row],[Thinning Factor]]) -> 0 | G111: =Table8_thin_ex[[#This Row],[Phosphorus Excreted (g)]]*(1-Table8_thin_ex[[#This Row],[Thinning Factor]]) -> 0
A112: Editable entry cell | B112: ='Diet input details'!E27 -> 0 | C112: =IF(Table8_thin_ex[[#This Row],[Ration End Day]]>'Flock input details'!$C$13,'Flock input details'!$E$13,IF(Table8_thin_ex[[#This Row],[Ration End Day]]>'Flock input details'!$C$11,IF(Table8_thin_ex[[#This Row],[Ration End Day]]>'Flock input details'!$C$12,('Calculations - Dataset'!$B$94+'Calculations - Dataset'!$B$95),'Calculations - Dataset'!$B$94),0)) -> 0 | D112: 0 | E112: 0 | F112: =Table8_thin_ex[[#This Row],[Nitrogen Excreted (g)]]*(1-Table8_thin_ex[[#This Row],[Thinning Factor]]) -> 0 | G112: =Table8_thin_ex[[#This Row],[Phosphorus Excreted (g)]]*(1-Table8_thin_ex[[#This Row],[Thinning Factor]]) -> 0
A113: Editable entry cell | B113: ='Diet input details'!E28 -> 0 | C113: =IF(Table8_thin_ex[[#This Row],[Ration End Day]]>'Flock input details'!$C$13,'Flock input details'!$E$13,IF(Table8_thin_ex[[#This Row],[Ration End Day]]>'Flock input details'!$C$11,IF(Table8_thin_ex[[#This Row],[Ration End Day]]>'Flock input details'!$C$12,('Calculations - Dataset'!$B$94+'Calculations - Dataset'!$B$95),'Calculations - Dataset'!$B$94),0)) -> 0 | D113: 0 | E113: 0 | F113: =Table8_thin_ex[[#This Row],[Nitrogen Excreted (g)]]*(1-Table8_thin_ex[[#This Row],[Thinning Factor]]) -> 0 | G113: =Table8_thin_ex[[#This Row],[Phosphorus Excreted (g)]]*(1-Table8_thin_ex[[#This Row],[Thinning Factor]]) -> 0
A114: TOTAL | D114: =SUMIF(D105:D113,"<>#N/A") -> 0 | E114: =SUMIF(E105:E113,"<>#N/A") -> 0 | F114: 0 | G114: 0
A117: Table 9. Nutrient excretion (kg/animal place/year)
A118: Source:
A119: This table converts the excretion values presented in Table 8 from grams per bird to kg/animal place/year. The total nutrient excreted (from Table 8 in 'Dataset') is multiplied by cycles per year (from 'Flock input details'), and then divided by 1000 to convert from g to kg
A121: Nitrogen excretion (kg) | B121: Phosphorus excretion (kg)
A122: =(F114*'Flock input details'!C7)/1000 ->  | B122: =(G114*'Flock input details'!C7)/1000 -> 
A125: Table 10. Per cycle/Per year values
A126: Source: | B126: N/A
A127: This table presents the intake and excreted values on a per cycle and per year basis. These values are based off what has been calculated in the tables above and the days input to 'Flock input details'
A129: Per cycle/year | B129: Feed Intake (t) | C129: Nitrogen Intake (t) | D129: Phosphorus Intake (t) | E129: Nitrogen Excretion (t) | F129: Phosphorus Excretion (t)
A130: Per cycle | B130: =(J17*'Flock input details'!C5)/1000000 -> 0 | C130: =(J34*'Flock input details'!C5)/1000000 -> 0 | D130: =(K34*'Flock input details'!C5)/1000000 -> 0 | E130: =(F114*'Flock input details'!C5)/1000000 -> 0 | F130: =(G114*'Flock input details'!C5)/1000000 -> 0
A131: Per year | B131: =B130*'Flock input details'!C7 ->  | C131: =C130*'Flock input details'!C7 ->  | D131: =D130*'Flock input details'!C7 ->  | E131: =E130*'Flock input details'!C7 ->  | F131: =F130*'Flock input details'!C7 -> 
A135: Per cycle/year | B135: Feed Intake (kg) | C135: Nitrogen Intake (kg) | D135: Phosphorus Intake (kg) | E135: Nitrogen Excretion (kg) | F135: Phosphorus Excretion (kg)
A136: Per animal place/per year | B136: =(J17*'Flock input details'!C7)/1000 ->  | C136: =(J34*'Flock input details'!C7)/1000 ->  | D136: =(K34*'Flock input details'!C7)/1000 ->  | E136: =Table9_ex_pp_yr[Nitrogen excretion (kg)] ->  | F136: =Table9_ex_pp_yr[Phosphorus excretion (kg)] -> 
A139: Table 11. Weighted Avg. Bird Weight
A140: Source: | B140: N/A
A141: This calculates the weighted average bird weight based on bodyweight from ROSS308, % thinned, and days of age data
A143: Thinning | B143: Bodyweight after thins (g) | C143: Bodyweight after mortality (g) | D143: Bodyweight after chick mortality (g)
A144: 1 thin | B144: =((VLOOKUP('Flock input details'!C11,Perf_Data,3,FALSE))*'Flock input details'!E11)+((VLOOKUP('Flock input details'!C13,Perf_Data,3,FALSE))*'Flock input details'!E13) -> 0 | C144: =B144*(1-'Flock input details'!$C$23) -> 0 | D144: =C144-($B$8*'Flock input details'!$C$23) -> 0
A145: 2 thins | B145: =((VLOOKUP('Flock input details'!C11,Perf_Data,3,FALSE))*'Flock input details'!E11)+((VLOOKUP('Flock input details'!C12,Perf_Data,3,FALSE))*'Flock input details'!E12)+((VLOOKUP('Flock input details'!C13,Perf_Data,3,FALSE))*'Flock input details'!E13) -> 0 | C145: =B145*(1-'Flock input details'!$C$23) -> 0 | D145: =C145-($B$8*'Flock input details'!$C$23) -> 0
A148: Table 12. Liveweight Calcs
A149: Source: | B149: N/A
A150: This calculates the weighted average bird weight based on bodyweight from ROSS308, % thinned, and days of age data
A153: Weight group | B153: kg
A154: Weighted Ave. Bird weight (kg) | B154: =(IF('Flock input details'!C12>0,'Calculations - Dataset'!D145,'Calculations - Dataset'!D144))/1000*Table18[% of Target bodyweight] -> 0
A155: Liveweight/Crop (kg) | B155: =B154*('Flock input details'!C5*(1-'Flock input details'!C23)) -> 0
A158: Table 13. Bodyweight Adjustment
A159: Source: | B159: N/A
A160: This calculates the % of the target bodyweight that the average bird in the system is reaching at clear
A162: % of Target bodyweight
A163: =IF('Flock input details'!C19=0,1,('Flock input details'!C19/'Flock input details'!D19)) -> 1
A166: Table 13. FCR Adjustment
A167: Source: | B167: N/A
A168: This calculates the % of the target bodyweight that the average bird in the system is reaching at clear
A170: % of Target bodyweight
A171: =IF('Flock input details'!C18=0,1,('Flock input details'!C18/'Flock input details'!D18)) -> 1
